[Event "European Women Blitz-ch 2024"]
[Site "Monaco"]
[Date "2025.01.10"]
[Round "10.18"]
[White "Matnadze Bujiashvili, Ann"]
[Black "Schulze, Lara"]
[Result "1-0"]
[Annotator "TA"]
[ECO "D11"]
[WhiteElo "2315"]
[BlackElo "2266"]
[PlyCount "69"]
[EventDate "2025.01.06"]
[EventType "swiss"]
[EventCountry "MNC"]
[SourceTitle "playchess.com"]
[Source "ChessBase"]
[SourceQuality "1"]
[TimeControl "180+2"]

{[%evp 16,69,0,0,0,-8,-1,-6,16,16,22,8,59,36,27,14,14,25,23,11,16,34,49,66,60,53,166,77,84,72,81,47,68,68,60,35,82,75,83,38,79,64,66,72,94,63,86,66,81,53,93,80,95,22,389,392]} 1. d4 {[%emt 0:00:01]} Nf6 {[%emt 0:00:01]} 2. Nf3 {[%emt 0:00:01]} d5 {[%emt 0:00:01]} 3. g3 {[%emt 0:00:01]} Bf5 {[%emt 0:03:06]} 4. Bg2 {[%emt 0:00:02]} e6 {[%emt 0:00:00]} 5. c4 {[%emt 0:00:01]} c6 {[%emt 0:00:00]} 6. O-O {[%emt 0:00:02]} h6 {[%emt 0:00:00]} 7. Nc3 {[%emt 0:00:01]} Nbd7 {[%emt 0:00:00]} 8. Qb3 {[%emt 0:00:02]} Qb6 {[%emt 0:00:00]} 9. c5 {[%emt 0:00:01]} Qxb3 {[%emt 0:00:00]} 10. axb3 {[%emt 0:00:01]} a6 {[%emt 0:00:00]} 11. b4 {[%emt 0:00:02][%cal Ob4b5]} Rc8 {[%emt 0:00:00] The position is equal.} 12. Nd2 {[%emt 0:00:01]} Be7 {[%emt 0:00:00]} 13. Nb3 {[%emt 0:00:03]} Bd8 {[%emt 0:00:00]} (13... g5 $11) 14. f3 {[%emt 0:00:05]} g5 {[%emt 0:00:00]} 15. e4 {[%emt 0:00:02]} Bg6 {[%emt 0:00:00]} 16. Re1 {[%emt 0:00:18]} O-O {[%emt 0:00:00]} 17. h4 {[%emt 0:00:03]} gxh4 {[%emt 0:00:00]} 18. Bxh6 {[%emt 0:00:04]} Re8 {[%emt 0:00:00]} 19. gxh4 {[%emt 0:00:11]} dxe4 {[%emt 0:00:00]} 20. fxe4 {[%emt 0:00:04]} Nh7 {[%emt 0:00:00]} (20... Nh5 $14) 21. d5 {[%emt 0:00:33]} (21. Na5 $18 {Strongly threatening h5.} Rb8 22. Re3) 21... Bxh4 $16 {[%emt 0:00:00]} 22. Re3 {[%emt 0:00:34]} Bf6 {[%emt 0:00:01]} 23. dxc6 {[%emt 0:00:12]} bxc6 {[%emt 0:00:07]} 24. Rxa6 {[%emt 0:00:03]} Ne5 {[%emt 0:00:02]} 25. Rg3 {[%emt 0:00:52]} Red8 {[%emt 0:00:08]} (25... Rb8 $14 {feels stronger.}) 26. Na5 {[%emt 0:00:07][%cal Bb3a5,Ba5b7,Bb7d6][%mdl 32]} Nf8 {[%emt 0:00:13]} 27. Bf4 {[%emt 0:00:04]} Nfd7 {[%emt 0:00:01]} 28. Nb7 {[%emt 0:00:06]} Rf8 {[%emt 0:00:02]} 29. Nd6 {[%emt 0:00:01]} Rb8 {[%emt 0:00:01]} 30. Na2 {[%emt 0:00:12]} Ra8 {[%emt 0:00:00]} 31. Bf1 {[%emt 0:00:03] White is much more active.} Rxa6 {[%emt 0:00:02]} 32. Bxa6 {[%emt 0:00:01]} Ra8 {[%emt 0:00:01]} 33. Ra3 {[%emt 0:00:04]} Rb8 {[%emt 0:00:04] [#]} 34. Bd2 {[%emt 0:00:06]} (34. Bc8 $1 $16) 34... Nf3+ $2 {[%emt 0:00:02][%mdl 8192]} 35. Rxf3 {[%emt 0:00:02] Weighted Error Value: White=0.18 (very precise) /Black=0.37.  Loses game:     	---       	Black=1      Mistake:       	White=2     	Black=3      Inaccurate:     	White=4     	Black=2      OK:         	White=12    	Black=7      Best:        	White=1     	---} 1-0

[Event "European Women Blitz-ch 2024"]
[Site "Monaco"]
[Date "2025.01.10"]
[Round "11.1"]
[White "Maltsevskaya, Aleksandra"]
[Black "Roebers, Eline"]
[Result "0-1"]
[Annotator "TA"]
[ECO "B45"]
[WhiteElo "2368"]
[BlackElo "2381"]
[PlyCount "74"]
[EventDate "2025.01.06"]
[EventType "swiss"]
[EventCountry "MNC"]
[SourceTitle "playchess.com"]
[Source "ChessBase"]
[SourceQuality "1"]
[TimeControl "180+2"]

{[%evp 12,73,27,32,38,20,20,29,25,35,30,45,28,27,43,40,45,17,25,-12,26,-14,0,-22,33,27,33,-45,-50,-59,-58,-298,-278,-569,-532,-652,-567,-613,-527,-529,-537,-701,-605,-879,-619,-1039,-1023,-1408,-1256,-1168,-1155,-1114,-891,-881,-862,-2737,-2718,-29982,-29983,-29988,-29987,-29998,-29999,-29999]} 1. e4 {[%emt 0:00:02]} c5 {[%emt 0:00:01]} 2. Nf3 {[%emt 0:00:02]} Nc6 {[%emt 0:00:00]} 3. d4 {[%emt 0:00:01]} cxd4 {[%emt 0:00:01]} 4. Nxd4 {[%emt 0:00:01]} Nf6 {[%emt 0:00:01]} 5. Nc3 {[%emt 0:00:02]} e6 {[%emt 0:00:00]} 6. Ndb5 {[%emt 0:00:03]} Bc5 {[%emt 0:00:01]} 7. Bf4 {[%emt 0:00:03] Threatens to win with Nc7+.} O-O {[%emt 0:00:01]} 8. Bc7 {[%emt 0:00:01]} Qe7 {[%emt 0:00:00]} 9. Bd6 $1 {[%emt 0:00:02]} Bxd6 {[%emt 0:00:01]} 10. Qxd6 {[%emt 0:00:01]} Qd8 {[%emt 0:00:01]} 11. O-O-O {[%emt 0:00:03]} a6 {[%emt 0:00:01]} 12. Nd4 $1 {[%emt 0:00:01]} Ne7 {[%emt 0:00:00]} 13. h4 {[%emt 0:00:03]} Ne8 {[%emt 0:00:01]} 14. Qg3 {[%emt 0:00:02]} b5 {[%emt 0:00:04]} 15. Bd3 {[%emt 0:00:03]} Qb6 {[%emt 0:00:09]} 16. e5 {[%emt 0:00:15][%cal Oa2a3]} Bb7 {[%emt 0:00:09][%cal Od7d6]} 17. h5 {[%emt 0:00:16][%cal Bh4h5,Bh5h6][%mdl 32]} Rc8 {[%emt 0:00:14] [#]} (17... h6 $11) 18. h6 $1 $14 {[%emt 0:00:02]} g6 $1 {[%emt 0:00:04]} 19. Qh4 {[%emt 0:00:32]} (19. Nce2 $14) 19... f6 {[%emt 0:00:45]} 20. exf6 {[%emt 0:00:27]} Nxf6 {[%emt 0:00:04]} 21. Nce2 $2 {[%emt 0:00:51]} (21. f3 $15) 21... e5 $19 {[%emt 0:00:06]} (21... Bxg2 22. Rhe1 $17) 22. Nf5 $2 {[%emt 0:00:11]} (22. f3 exd4 23. Nxd4) 22... gxf5 {[%emt 0:00:07]} 23. Qg5+ {[%emt 0:00:03]} Ng6 {[%emt 0:00:00]} 24. Bxf5 {[%emt 0:00:02]} Ne4 {[%emt 0:00:06]} (24... Qxf2 $2 {perishes.} 25. Bxg6 Kh8 26. Bxh7 $18) 25. Bxe4 {[%emt 0:00:09]} Bxe4 {[%emt 0:00:01]} 26. Nc3 {[%emt 0:00:05]} Bf5 {[%emt 0:00:13][%cal Ob5b4]} 27. g4 {[%emt 0:00:08]} Be6 {[%emt 0:00:07]} 28. Ne4 {[%emt 0:00:20]} Qc6 {[%emt 0:00:01][%csl Gc8][%cal Rc6c2]} 29. Nc3 {[%emt 0:00:06]} b4 {[%emt 0:00:01]} 30. Rh3 {[%emt 0:00:02]} bxc3 {[%emt 0:00:09]} 31. Rxc3 {[%emt 0:00:01]} Qb7 {[%emt 0:00:01] Threatens to win with ...Rxc3.} 32. Rxc8 {[%emt 0:00:02]} Qxc8 {[%emt 0:00:01]} ({Weaker is} 32... Rxc8 33. Qf6 $17) 33. c3 {[%emt 0:00:02]} Qc4 {[%emt 0:00:03]} 34. Rd2 {[%emt 0:00:03]} Qxa2 {[%emt 0:00:05]} 35. Qe3 {[%emt 0:00:02]} Bb3 {[%emt 0:01:33][%cal Ra2a1]} 36. Rd6 {[%emt 0:00:02]} Qa1+ {[%emt 0:00:00]} 37. Kd2 {[%emt 0:00:01]} Qd1# {[%emt 0:00:00]} 0-1

[Event "European Women Blitz-ch 2024"]
[Site "Monaco"]
[Date "2025.01.10"]
[Round "11.2"]
[White "Khotenashvili, Bella"]
[Black "Tsolakidou, Stavroula"]
[Result "1-0"]
[Annotator "RC"]
[ECO "A24"]
[WhiteElo "2420"]
[BlackElo "2451"]
[PlyCount "97"]
[EventDate "2025.01.06"]
[EventType "swiss"]
[EventCountry "MNC"]
[SourceTitle "playchess.com"]
[Source "ChessBase"]
[SourceQuality "1"]
[TimeControl "180+2"]

1. Nf3 {[%emt 0:00:01]} Nf6 {[%emt 0:00:01]} 2. g3 {[%emt 0:00:02]} g6 {[%emt 0:00:02]} 3. Bg2 {[%emt 0:00:01]} Bg7 {[%emt 0:00:01]} 4. O-O {[%emt 0:00:02]} O-O {[%emt 0:00:02]} 5. c4 {[%emt 0:00:01]} d6 {[%emt 0:00:02]} 6. Nc3 {[%emt 0:00:02]} e5 {[%emt 0:00:02]} 7. d3 {[%emt 0:00:01]} c6 {[%emt 0:00:04]} 8. Rb1 {[%emt 0:00:14]} a5 {[%emt 0:00:02]} 9. a3 {[%emt 0:00:12]} Re8 {[%emt 0:00:02]} 10. e4 {[%emt 0:00:10]} Na6 {[%emt 0:00:03]} 11. b4 {[%emt 0:00:09]} axb4 {[%emt 0:00:02]} 12. axb4 {[%emt 0:00:01]} Bg4 {[%emt 0:00:02]} 13. Qb3 {[%emt 0:00:09]} Nc7 {[%emt 0:00:08]} 14. Be3 {[%emt 0:00:13]} Ne6 {[%emt 0:00:15]} 15. Ne2 {[%emt 0:00:18]} Nd7 {[%emt 0:00:05]} 16. h3 {[%emt 0:00:20]} Bxf3 {[%emt 0:00:02]} 17. Bxf3 {[%emt 0:00:01]} h5 {[%emt 0:00:02]} 18. Bg2 {[%emt 0:00:11]} h4 {[%emt 0:00:05]} 19. f4 {[%emt 0:00:27]} Nd4 {[%emt 0:00:24]} 20. Nxd4 {[%emt 0:00:09]} exd4 {[%emt 0:00:02]} 21. Bf2 {[%emt 0:00:00]} hxg3 {[%emt 0:00:11]} 22. Bxg3 {[%emt 0:00:01]} c5 {[%emt 0:00:22]} 23. b5 {[%emt 0:00:25]} Qa5 {[%emt 0:00:18]} 24. Rf2 {[%emt 0:00:12]} Qa3 {[%emt 0:00:20]} 25. Rfb2 {[%emt 0:00:05]} Qxb3 {[%emt 0:00:06]} 26. Rxb3 {[%emt 0:00:01]} Nb6 {[%emt 0:00:03]} 27. e5 {[%emt 0:00:08]} dxe5 {[%emt 0:00:34]} 28. Bxb7 {[%emt 0:00:02]} Ra2 {[%emt 0:00:04]} 29. Bc6 {[%emt 0:00:10]} Re7 {[%emt 0:00:06]} 30. R1b2 {[%emt 0:00:06]} Ra1+ {[%emt 0:00:03]} 31. Rb1 {[%emt 0:00:01]} Ra2 {[%emt 0:00:01]} 32. R3b2 {[%emt 0:00:01]} Ra3 {[%emt 0:00:01]} 33. Rb3 {[%emt 0:00:04]} Ra2 {[%emt 0:00:03]} 34. Re1 {[%emt 0:00:03]} f6 {[%emt 0:00:22]} 35. fxe5 {[%emt 0:00:01]} fxe5 {[%emt 0:00:01]} 36. Be4 {[%emt 0:00:03]} g5 {[%emt 0:00:05]} 37. Rf1 {[%emt 0:00:01]} Rea7 {[%emt 0:00:03]} 38. Rf2 {[%emt 0:00:02]} Rxf2 {[%emt 0:00:02]} 39. Kxf2 {[%emt 0:00:01]} Ra2+ {[%emt 0:00:04]} 40. Kf3 {[%emt 0:00:01]} Kf7 {[%emt 0:00:02]} 41. Kg4 {[%emt 0:00:05]} Bf6 {[%emt 0:00:02]} 42. Rb1 {[%emt 0:00:02]} Ra3 {[%emt 0:00:02]} 43. Rf1 {[%emt 0:00:01]} Ke6 {[%emt 0:00:01]} 44. Rh1 {[%emt 0:00:05]} Ra2 {[%emt 0:00:02]} 45. h4 {[%emt 0:00:02]} gxh4 {[%emt 0:00:01]} 46. Bxh4 {[%emt 0:00:00]} Bxh4 {[%emt 0:00:02]} 47. Rxh4 {[%emt 0:00:01]} Nd7 {[%emt 0:00:03]} 48. Rh6+ {[%emt 0:00:01]} Nf6+ {[%emt 0:00:01]} 49. Kg5 {[%emt 0:00:01]} 1-0

[Event "European Women Blitz-ch 2024"]
[Site "Monaco"]
[Date "2025.01.10"]
[Round "11.3"]
[White "Paehtz, Elisabeth"]
[Black "Kosteniuk, Alexandra"]
[Result "1/2-1/2"]
[Annotator "TA"]
[ECO "D02"]
[WhiteElo "2428"]
[BlackElo "2484"]
[PlyCount "144"]
[EventDate "2025.01.06"]
[EventType "swiss"]
[EventCountry "MNC"]
[SourceTitle "playchess.com"]
[Source "ChessBase"]
[SourceQuality "1"]
[TimeControl "180+2"]

{[%evp 54,144,205,197,237,246,231,233,243,231,291,252,337,334,420,417,489,434,446,249,324,0,93,109,146,102,118,131,162,164,153,154,156,61,216,214,183,75,195,155,220,123,138,100,97,70,77,57,58,38,130,127,199,197,196,196,196,196,187,14,176,133,168,0,176,176,194,0,121,0,193,179,182,119,175,164,304,304,304,304,304,304,304,303,160,160,160,2,2,0,160,106,106]} 1. d4 {[%emt 0:00:01]} Nf6 {[%emt 0:00:01]} 2. Nf3 {[%emt 0:00:01]} d5 {[%emt 0:00:01]} 3. c3 {[%emt 0:00:01]} g6 {[%emt 0:00:02]} 4. Bf4 {[%emt 0:00:02]} Bg7 {[%emt 0:00:01]} 5. e3 {[%emt 0:00:02]} O-O {[%emt 0:00:09]} 6. h3 {[%emt 0:00:02]} c5 {[%emt 0:00:05]} 7. Nbd2 $1 {[%emt 0:00:01] 7.Nbd2 scores better than 7.Be2.} Nfd7 {[%emt 0:00:02] D02: 1 d4 d5 2 Nf3 sidelines, including 2...Nf6 3 g3 and 2...Nf6 3 Bf4.} 8. Be2 {[%emt 0:00:07]} Nc6 {[%emt 0:00:01]} 9. O-O {[%emt 0:00:11]} e5 {[%emt 0:00:07]} 10. dxe5 {[%emt 0:00:02]} Ndxe5 {[%emt 0:00:02]} 11. Nxe5 {[%emt 0:00:03]} Nxe5 {[%emt 0:00:02]} 12. Nf3 {[%emt 0:00:01]} Nc6 {[%emt 0:00:05]} 13. Qb3 {[%emt 0:00:09]} Na5 {[%emt 0:00:19]} 14. Qa3 {[%emt 0:00:15]} b6 {[%emt 0:00:02]} 15. Rfd1 $146 {[%emt 0:00:04]} ({Predecessor:} 15. Rad1 Bb7 16. b4 cxb4 17. cxb4 Qe7 18. Rd3 Nc4 19. Qb3 Rfe8 20. Rdd1 Rac8 21. a3 {0-1 Garcia Ospina,S (1610)-Hernandez Bermudez,M (1895) American Continental 18th 2024 (6)}) 15... Re8 {[%emt 0:00:49]} 16. b4 {[%emt 0:00:27]} cxb4 {[%emt 0:00:16]} 17. cxb4 {[%emt 0:00:03]} Bxa1 {[%emt 0:00:06]} 18. Rxa1 {[%emt 0:00:01]} Nc4 {[%emt 0:00:02]} 19. Qc3 {[%emt 0:00:02]} Be6 {[%emt 0:00:17]} 20. Bg5 {[%emt 0:00:06]} Qc7 {[%emt 0:00:08]} 21. Bh6 {[%emt 0:00:06]} f6 {[%emt 0:00:01]} 22. Qxf6 {[%emt 0:00:05]} Qe7 {[%emt 0:00:09]} 23. Qd4 {[%emt 0:00:06]} Nd6 {[%emt 0:00:01]} 24. g4 {[%emt 0:00:09]} Ne4 {[%emt 0:00:11]} 25. Ba6 {[%emt 0:00:35]} Qf6 {[%emt 0:00:07]} 26. Qxf6 {[%emt 0:00:05]} Nxf6 {[%emt 0:00:01]} 27. Nd4 {[%emt 0:00:01]} Bf7 {[%emt 0:00:02] [#]} 28. Rc1 $1 {[%emt 0:00:03]} Ne4 {[%emt 0:00:13]} 29. Rc7 {[%emt 0:00:04]} Nd6 {[%emt 0:00:05]} 30. Bf4 {[%emt 0:00:04]} Nc4 {[%emt 0:00:02]} 31. a4 {[%emt 0:00:20]} Rf8 {[%emt 0:00:10]} 32. Kg2 {[%emt 0:00:02]} Be8 {[%emt 0:00:06]} 33. Bb7 {[%emt 0:00:03]} Rd8 {[%emt 0:00:00]} 34. Bg5 {[%emt 0:00:04]} Bxa4 {[%emt 0:00:05]} 35. Bxd8 {[%emt 0:00:03]} Rxd8 {[%emt 0:00:00]} 36. Ne6 {[%emt 0:00:09]} (36. e4 $142 Nd6 37. Bxd5+ Kh8 38. Rxa7) 36... Rd6 {[%emt 0:00:01]} 37. Rg7+ $2 {[%emt 0:00:05]} (37. e4 $18 d4 (37... Rxe6 $2 {is the wrong capture.} 38. Bxd5 Kf8 39. Bxe6 $18) 38. Bd5 (38. Rxc4 d3 $18)) 37... Kh8 $16 {[%emt 0:00:00]} 38. Re7 {[%emt 0:00:01]} h6 {[%emt 0:00:15]} 39. Nf4 {[%emt 0:00:08]} d4 {[%emt 0:00:05] [#]} 40. exd4 $1 {[%emt 0:00:02]} a5 {[%emt 0:00:02]} 41. bxa5 {[%emt 0:00:02]} bxa5 {[%emt 0:00:01]} 42. Be4 {[%emt 0:00:02]} g5 {[%emt 0:00:03]} 43. Nh5 {[%emt 0:00:04]} (43. Ng6+ $16 Kg8 44. Bf5 Bc6+ 45. Kg3) 43... Bc6 $2 {[%emt 0:00:05]} (43... Kg8 $14) 44. Bxc6 {[%emt 0:00:08]} Rxc6 {[%emt 0:00:00]} 45. d5 {[%emt 0:00:02]} (45. Ra7 $18 {is more deadly.}) 45... Rd6 {[%emt 0:00:01]} (45... Ra6 $16) 46. Ra7 {[%emt 0:00:02]} Nb6 {[%emt 0:00:05]} (46... Kg8 $16 47. Kf3 Rb6) 47. Rxa5 {[%emt 0:00:02]} (47. Ra6 $18) 47... Nxd5 {[%emt 0:00:01]} 48. Ra7 {[%emt 0:00:02]} Nf6 {[%emt 0:00:02]} 49. Ng3 {[%emt 0:00:01]} Nd5 {[%emt 0:00:02]} 50. Nf5 {[%emt 0:00:01]} Nf4+ {[%emt 0:00:00]} 51. Kf3 {[%emt 0:00:02]} Re6 {[%emt 0:00:02]} (51... Rd3+ $14 52. Ke4 Rxh3) 52. h4 $16 {[%emt 0:00:02]} Nd3 {[%emt 0:00:03]} (52... Rb6 $16) 53. h5 $18 {[%emt 0:00:03]} Kg8 {[%emt 0:00:03]} 54. Rg7+ {[%emt 0:00:04]} Kh8 {[%emt 0:00:00]} 55. Rc7 {[%emt 0:00:02]} Kg8 {[%emt 0:00:02]} 56. Ne3 $2 {[%emt 0:00:02]} (56. Rc3 $18 Nf4 57. Rc8+ Kh7 58. Rc7+ Kg8 59. Nd4) 56... Nf4 $2 {[%emt 0:00:02]} (56... Rf6+ $1 $11 57. Nf5 Nf4) 57. Ra7 {[%emt 0:00:03]} Rb6 {[%emt 0:00:02]} 58. Rc7 {[%emt 0:00:02]} Re6 $1 {[%emt 0:00:01]} 59. Rc8+ {[%emt 0:00:01]} Kh7 {[%emt 0:00:01]} 60. Rc7+ {[%emt 0:00:01]} (60. Nf5 $18) 60... Kg8 $16 {[%emt 0:00:00]} 61. Nf5 {[%emt 0:00:02]} (61. Rc2 $16) 61... Nd3 $1 $18 {[%emt 0:00:01]} 62. Kg3 {[%emt 0:00:03]} Nf4 {[%emt 0:00:03]} 63. Rd7 {[%emt 0:00:02]} (63. Rc8+ $18 Kh7 64. Rc7+ Kh8 65. Kf3) 63... Ra6 {[%emt 0:00:06]} (63... Rf6 $16) 64. Kf3 $18 {[%emt 0:00:04]} Re6 {[%emt 0:00:00]} (64... Nh3 $142 65. Ne7+ Kf7) 65. Rd6 $18 {[%emt 0:00:02]} Rxd6 {[%emt 0:00:03]} 66. Nxd6 {[%emt 0:00:01]} Kh7 {[%emt 0:00:01]} 67. Nf5 {[%emt 0:00:01]} Nd3 {[%emt 0:00:01]} 68. Ke3 {[%emt 0:00:02]} Ne5 {[%emt 0:00:00]} 69. f3 {[%emt 0:00:01]} Nc4+ {[%emt 0:00:02]} 70. Ke4 $2 {[%emt 0:00:02]} (70. Kf2 $16) 70... Nd2+ $11 {[%emt 0:00:01]} 71. Ke3 $2 {[%emt 0:00:02]} ({Better is} 71. Kd3 $11 Nxf3 72. Ke4) 71... Nc4+ $16 {[%emt 0:00:00]} 72. Kd4 {[%emt 0:00:00]} ({White should play} 72. Kd3 Na3 73. Nd6) 72... Nd2 {[%emt 0:00:01]} 1/2-1/2

[Event "European Women Blitz-ch 2024"]
[Site "Monaco"]
[Date "2025.01.10"]
[Round "11.4"]
[White "Arabidze, Meri"]
[Black "Charkhalashvili, Inga"]
[Result "1-0"]
[Annotator "TA"]
[ECO "D36"]
[WhiteElo "2457"]
[BlackElo "2240"]
[PlyCount "153"]
[EventDate "2025.01.06"]
[EventType "swiss"]
[EventCountry "MNC"]
[SourceTitle "playchess.com"]
[Source "ChessBase"]
[SourceQuality "1"]
[TimeControl "180+2"]

{[%evp 52,153,0,-13,2,-379,-379,-370,0,-24,0,0,0,0,0,0,21,23,29,11,54,51,47,39,44,38,47,50,48,50,61,26,36,6,36,25,48,43,51,26,26,18,22,14,13,0,0,0,116,116,116,116,116,116,128,128,128,128,128,128,128,128,128,0,0,0,0,0,8,7,8,8,8,8,1876,1325,996,108,108,108,108,0,0,0,108,108,108,108,29974,29975,29975,29976,29976,29977,29977,29978,29978,29979,29979,29980,29980,29981,29983,29984]} 1. d4 {[%emt 0:00:01]} Nf6 {[%emt 0:00:01]} 2. c4 {[%emt 0:00:00]} e6 {[%emt 0:00:01]} 3. Nf3 {[%emt 0:00:01]} d5 {[%emt 0:00:00]} 4. Nc3 {[%emt 0:00:03]} c6 {[%emt 0:00:01]} 5. cxd5 {[%emt 0:00:03]} exd5 {[%emt 0:00:01]} 6. Bf4 {[%emt 0:00:02]} Bd6 {[%emt 0:00:02]} 7. Bxd6 {[%emt 0:00:02]} Qxd6 {[%emt 0:00:02]} 8. e3 {[%emt 0:00:00]} O-O {[%emt 0:00:02]} 9. Bd3 {[%emt 0:00:04]} Re8 {[%emt 0:00:19]} 10. Qc2 {[%emt 0:00:09]} h6 {[%emt 0:00:02]} 11. O-O {[%emt 0:00:02]} Nbd7 {[%emt 0:00:07]} 12. a3 {[%emt 0:00:01]} Qe7 {[%emt 0:00:11]} 13. Nd2 {[%emt 0:00:17]} Nf8 {[%emt 0:00:10]} 14. Rae1 {[%emt 0:00:04]} Bd7 {[%emt 0:00:14]} 15. f3 {[%emt 0:00:05]} Qd6 {[%emt 0:00:02]} 16. Kh1 {[%emt 0:00:09]} Re7 {[%emt 0:00:10]} 17. Nb3 {[%emt 0:00:09]} Ne6 {[%emt 0:00:15]} 18. Qf2 {[%emt 0:00:05]} c5 {[%emt 0:00:47]} 19. dxc5 {[%emt 0:00:14]} Nxc5 {[%emt 0:00:01]} 20. Nxc5 {[%emt 0:00:03]} Qxc5 {[%emt 0:00:01]} 21. Re2 {[%emt 0:00:16]} Rae8 {[%emt 0:00:06]} 22. Rfe1 {[%emt 0:00:01]} Bc6 {[%emt 0:00:11]} 23. Bb1 {[%emt 0:00:17]} b5 {[%emt 0:00:14]} 24. Kg1 {[%emt 0:00:09]} b4 {[%emt 0:00:50]} 25. axb4 {[%emt 0:00:02]} Qxb4 {[%emt 0:00:00]} 26. Qg3 {[%emt 0:00:24]} Qb6 {[%emt 0:00:00]} 27. Qf4 {[%emt 0:00:05]} Bb7 {[%emt 0:00:00]} 28. Kf2 $2 {[%emt 0:00:09][%mdl 8192]} (28. Bd3 $11 {and White is okay.}) 28... Ba6 $19 {[%emt 0:00:00]} 29. Rd2 {[%emt 0:00:02] [#]} Bc4 $2 {[%emt 0:00:00]} ({Better is} 29... d4 $1 $19 {[%cal Rd4e3]} 30. Rxd4 (30. Qxd4 $2 Rd7 $19) 30... Qxb2+ 31. Ne2 Rxe3 (31... Bxe2 32. Rb4 $17) 32. Qxe3 Rxe3 33. Kxe3 Nh7) 30. Qd4 {[%emt 0:00:01]} Qxd4 {[%emt 0:00:00]} (30... Qb8 {looks sharper.} 31. Kg1 Rb7 32. Bf5 Bb3) 31. Rxd4 {[%emt 0:00:01]} Rb8 {[%emt 0:00:00]} 32. Nd1 {[%emt 0:00:24]} Bb3 {[%emt 0:00:00]} 33. Re2 {[%emt 0:00:04]} Reb7 {[%emt 0:00:00]} 34. Bc2 {[%emt 0:00:07]} Bc4 {[%emt 0:00:05]} 35. Red2 {[%emt 0:00:03]} Bb3 {[%emt 0:00:06]} 36. Bxb3 {[%emt 0:00:06]} Rxb3 {[%emt 0:00:01]} 37. Ra4 {[%emt 0:00:04]} R8b7 {[%emt 0:00:01]} 38. Ke2 {[%emt 0:00:05]} Rc7 {[%emt 0:00:03]} 39. Nc3 {[%emt 0:00:07]} Rcb7 {[%emt 0:00:02]} 40. Ra2 {[%emt 0:00:04]} (40. Nxd5 Nxd5 41. Rxd5 Rxb2+ 42. Rd2 Rxd2+ 43. Kxd2 Rb2+ 44. Ke1 Rxg2 $11) 40... g6 {[%emt 0:00:04]} 41. g4 {[%emt 0:00:05]} (41. Nxd5 Nxd5 42. Rxd5 Rxb2+ 43. Rxb2 Rxb2+ 44. Kf1 Ra2 $11) 41... Kg7 {[%emt 0:00:03]} 42. h4 {[%emt 0:00:00]} Kg8 {[%emt 0:00:04]} 43. g5 {[%emt 0:00:02]} hxg5 {[%emt 0:00:01]} 44. hxg5 {[%emt 0:00:01]} (44. Nxd5 $2 Nxd5 45. Rxd5 gxh4 $19 (45... Rxb2+ $2 46. Rd2 $19)) 44... Nh7 {[%emt 0:00:05]} 45. f4 {[%emt 0:00:01]} (45. Nxd5 Nxg5 46. Nc3 Kg7 $11) (45. Rxd5 {simplifies} Rxb2+ 46. Rxb2 Rxb2+ 47. Kd3) 45... f6 $1 {[%emt 0:00:00]} 46. gxf6 {[%emt 0:00:11]} Nxf6 {[%emt 0:00:01]} 47. Kf3 {[%emt 0:00:05]} Kf7 {[%emt 0:00:00]} 48. Nxd5 {[%emt 0:00:02]} Nxd5 {[%emt 0:00:02]} 49. Rxd5 {[%emt 0:00:01]} Rxb2 {[%emt 0:00:01]} (49... Re7 $1 $11 {keeps the balance.}) 50. Rxb2 $16 {[%emt 0:00:02]} Rxb2 {[%emt 0:00:00]} 51. Rd7+ {[%emt 0:00:01]} Ke6 {[%emt 0:00:02]} 52. Rxa7 {[%emt 0:00:01]} Rb1 {[%emt 0:00:02]} 53. Ra6+ {[%emt 0:00:01]} Kf7 {[%emt 0:00:00]} 54. Rd6 {[%emt 0:00:04]} Ra1 {[%emt 0:00:02]} 55. Ke4 {[%emt 0:00:01]} Ra4+ {[%emt 0:00:01]} 56. Ke5 {[%emt 0:00:01]} Ra3 {[%emt 0:00:03]} 57. Rd7+ {[%emt 0:00:02]} (57. e4 $16) 57... Ke8 $11 {[%emt 0:00:01]} 58. Rb7 {[%emt 0:00:07]} Rxe3+ {[%emt 0:00:02]} 59. Kf6 {[%emt 0:00:01]} Re4 {[%emt 0:00:05]} 60. Kg5 {[%emt 0:00:02]} Kf8 {[%emt 0:00:03]} 61. Rb6 {[%emt 0:00:01]} Kf7 {[%emt 0:00:04]} 62. Rf6+ $1 {[%emt 0:00:01]} Ke7 $2 {[%emt 0:00:01][%mdl 8192]} (62... Kg7 $11) 63. Kxg6 $18 {[%emt 0:00:03]} Re1 {[%emt 0:00:03] [#]} 64. Rf5 $2 {[%emt 0:00:04]} (64. Rf7+ $1 $18 {and the rest is easy.} Ke8 65. f5) 64... Rg1+ {[%emt 0:00:02]} 65. Rg5 {[%emt 0:00:01]} Rf1 {[%emt 0:00:02]} 66. Rf5 {[%emt 0:00:04]} (66. f5 $16) 66... Rg1+ $11 {[%emt 0:00:01]} 67. Rg5 {[%emt 0:00:01]} (67. Kh5 $11) 67... Rf1 $1 $16 {[%emt 0:00:01]} 68. f5 {[%emt 0:00:01]} Rf2 {[%emt 0:00:02]} 69. Rg3 {[%emt 0:00:01]} Rb2 $2 {[%emt 0:00:03][%mdl 8192]} (69... Rf4 $16) 70. Kg7 {[%emt 0:00:02]} Rf2 {[%emt 0:00:03]} 71. Re3+ {[%emt 0:00:02]} Kd7 {[%emt 0:00:00]} 72. f6 {[%emt 0:00:01]} Rg2+ {[%emt 0:00:01]} 73. Kf8 {[%emt 0:00:01]} Kd6 {[%emt 0:00:02]} 74. f7 {[%emt 0:00:01]} Kd7 {[%emt 0:00:00]} 75. Re4 {[%emt 0:00:02]} Rg3 {[%emt 0:00:03]} 76. Rd4+ {[%emt 0:00:03]} Ke6 {[%emt 0:00:00]} 77. Ke8 {[%emt 0:00:11]} 1-0